bitfinex/quotes_ETHUSD_20251010
["timestamp","ask_amount","ask_price","bid_price","bid_amount"]
[1760139543774,0.13406887,3913.1,3911.5,6.4287]
[1760139544284,0.13406887,3913.1,3911.6,0.4527]
[1760139544496,0.13406887,3913.1,3911.6,6.4286]
[1760139544657,0.13406887,3913.1,3911.7,0.4527]
[1760139544860,0.13406887,3913.1,3911.7,6.4285]
[1760139545161,0.13406887,3913.1,3911.8,0.4527]
[1760139545370,0.13406887,3913.1,3911.8,6.4283]
[1760139545571,1.25471302,3916.6,3915.0,313.83618055]
[1760139545775,1.0,4526.7,3915.0,313.68499526]
[1760139545776,1.92,3915.6,3915.0,313.68499526]
[1760139545986,7.2901,3915.7,3915.0,306.49097186]
[1760139545987,0.13402048,3915.5,3915.0,306.49097186]
[1760139546285,0.13402048,3915.5,3915.0,306.35575346]
[1760139546440,0.13402048,3915.5,3915.0,307.44387597]
[1760139546650,1.3932566,3915.5,3915.0,303.20285975]
[1760139546849,1.3932566,3915.5,3915.0,303.06765256]
[1760139547294,1.3932566,3915.5,3915.0,302.93098148]
[1760139547454,1.3932566,3915.5,3915.0,302.79808146]
[1760139547854,1.3932566,3915.5,3915.0,303.88997815]
[1760139548054,1.3932566,3915.5,3915.0,303.7533965]
[1760139548288,1.3932566,3915.5,3915.0,302.2343965]
[1760139548489,1.3932566,3915.5,3915.0,302.09301827]
[1760139548862,1.3932566,3915.5,3915.0,300.86201827]
[1760139549058,1.3932566,3915.5,3915.0,300.72376907]
[1760139549264,2.22652235,3915.1,3915.0,301.81970958]
[1760139549496,1.22652274,3915.1,3915.0,301.68617343]
[1760139549788,0.99999961,3915.2,3915.0,295.39295822]
[1760139549987,0.13402048,3915.5,3915.0,295.39295822]
[1760139550194,0.99999961,3915.2,3915.0,293.22395822]
[1760139550398,0.99999961,3915.1,3915.0,293.22395822]
[1760139550560,0.99999961,3915.1,3915.0,293.93735936]
[1760139550757,0.13402048,3915.5,3915.0,293.93735936]
[1760139550958,0.99999961,3915.3,3915.0,293.62738952]
[1760139551197,0.13402048,3915.5,3915.0,293.40138952]
[1760139551493,0.13402048,3915.5,3915.0,291.98277875]
[1760139551856,0.13402048,3915.5,3915.0,291.76616251]
[1760139552196,0.99999961,3915.4,3915.0,292.7274947]
[1760139552491,0.99999961,3915.2,3915.0,292.03470877]
[1760139552673,0.99999961,3915.2,3915.0,291.2453876]
[1760139552873,0.13402048,3915.5,3915.0,291.2453876]
[1760139553068,0.99999961,3915.2,3915.0,290.79769388]
[1760139553283,0.99999961,3915.1,3915.0,289.11169388]
[1760139553463,0.99999961,3915.1,3915.0,290.20667184]
[1760139553656,0.99999961,3915.1,3915.0,290.07105682]
[1760139554056,0.99999961,3915.1,3915.0,289.93841768]
[1760139554295,0.99999961,3915.1,3915.0,289.28841769]
[1760139554862,0.99999961,3915.1,3915.0,290.51841769]
[1760139555061,0.13402048,3915.5,3915.0,290.38431235]
[1760139555263,0.13402048,3915.5,3915.0,290.25021563]
[1760139555496,0.13402048,3915.5,3915.0,283.19021563]
[1760139556395,0.13402048,3915.5,3915.0,284.42021563]
[1760139557571,0.13402048,3915.5,3915.0,285.65021563]
[1760139558301,0.08548496,3916.2,3915.0,285.14879153]
[1760139558598,0.13397673,3915.4,3915.0,285.14879153]
[1760139558772,0.08548496,3916.2,3915.0,285.14879153]
[1760139559102,0.13394821,3915.3,3915.0,284.42879153]
[1760139559460,0.2196,3915.8,3915.0,284.42879153]
[1760139559765,0.13395802,3915.2,3915.0,289.53679153]
[1760139559971,0.2196,3915.8,3915.0,289.53679153]
[1760139560435,0.13394593,3915.2,3915.0,290.76679153]
[1760139560578,0.08548496,3916.2,3915.0,290.76679153]
[1760139560900,0.13393317,3915.2,3915.0,290.76679153]
[1760139561107,0.08548496,3916.2,3915.0,290.76679153]
[1760139561468,0.13393132,3915.2,3915.0,288.81679153]
[1760139561765,0.08548496,3916.2,3915.0,289.76534022]
[1760139561995,0.13392395,3915.2,3915.0,289.59178258]
[1760139562194,0.08548496,3916.2,3915.0,289.59178258]
[1760139562383,0.08548496,3916.2,3915.0,289.44753596]
[1760139562583,0.13392285,3915.2,3915.0,289.30893852]
[1760139562799,0.08548496,3916.2,3915.1,0.4527]
[1760139563006,0.08648496,3916.2,3915.1,5.5612]
[1760139563311,0.08648496,3916.2,3915.1,6.3385]
[1760139563312,0.11603432,3915.2,3915.1,6.3385]
[1760139563614,0.06515598,3916.2,3915.1,6.3385]
[1760139563816,0.13391365,3915.2,3915.1,6.3385]
[1760139564104,0.06515598,3916.2,3915.1,6.7912]
[1760139564406,0.1339007,3915.2,3915.1,5.0385]
[1760139564712,0.06515598,3916.2,3915.1,6.2685]
[1760139564874,0.06515598,3916.2,3915.1,1.591]
[1760139565189,0.13392826,3915.4,3915.1,1.591]
[1760139565367,1.23552934,3918.6,3915.1,1.591]
[1760139565594,0.13391047,3916.1,3915.1,1.56959872]
[1760139565836,1.23552934,3918.6,3915.1,7.8918312]
[1760139566046,1.23552934,3918.6,3915.2,0.45032208]
[1760139566210,0.13389943,3916.0,3915.2,5.1083]
[1760139566410,0.13389943,3916.0,3915.2,3.1583]
[1760139566608,0.00440108,3919.0,3915.2,2.9393]
[1760139566808,0.1272,3915.2,3915.1,2.7782987]
[1760139567092,0.00440108,3919.0,3915.1,2.40805206]
[1760139567297,0.00440108,3919.0,3915.1,3.63805206]
[1760139567595,0.13394489,3915.2,3915.1,3.63805206]
[1760139567928,0.00440108,3919.0,3915.1,8.74645206]
[1760139568132,0.1339408,3915.2,3915.1,8.74645206]
[1760139568329,0.00440108,3919.0,3915.1,8.74645206]
[1760139568541,0.00440108,3919.0,3915.1,9.32645206]
[1760139568746,0.13396034,3915.2,3915.1,9.32645206]
[1760139568917,0.00440108,3919.0,3915.1,9.32645206]
[1760139569272,0.1339686,3915.2,3915.1,9.32645206]
[1760139569404,0.1339686,3915.2,3915.1,7.80745206]
[1760139569728,0.99999961,3917.5,3915.1,7.67346368]
[1760139570033,0.13399266,3915.2,3915.1,8.11945989]
[1760139570325,0.99999961,3917.2,3915.1,8.11945989]
[1760139570529,0.13401582,3915.2,3915.1,8.11945989]
[1760139570897,0.99999961,3916.2,3915.1,7.94624071]
[1760139571105,0.13402984,3915.2,3915.1,7.06498626]
[1760139571298,1.92,3916.8,3915.1,6.98198626]
[1760139571538,8.98,3916.8,3915.1,6.89898626]
[1760139571698,0.13403353,3915.2,3915.1,6.89898626]
[1760139571898,8.98,3916.8,3915.1,6.89898626]
[1760139572099,1.27860708,3916.7,3915.1,6.89898626]
[1760139572410,7.06,3916.8,3916.0,269.43893852]
[1760139572611,0.13399417,3916.6,3916.0,269.43893852]
[1760139573027,0.13399417,3916.6,3916.0,269.30494695]
[1760139573229,0.13399417,3916.6,3916.0,276.31154695]
[1760139573912,0.13399417,3916.6,3916.0,277.54154695]
[1760139574736,1.2513904,3916.5,3916.0,275.37254695]
[1760139575419,0.13399417,3916.6,3916.0,276.60254695]
[1760139576248,0.13399417,3916.6,3916.0,276.46857104]
[1760139576860,0.13399417,3916.6,3916.0,277.69857104]
[1760139577543,0.13399417,3916.6,3916.0,275.52957104]
[1760139577721,0.13399417,3916.6,3916.0,273.41831659]
[1760139578336,0.13399417,3916.6,3916.0,274.64831659]
[1760139578546,0.13399417,3916.6,3916.0,267.64171659]
[1760139579168,0.13399417,3916.6,3916.0,267.50775196]
[1760139579558,0.13399417,3916.6,3916.0,272.61465196]
[1760139579854,0.13399417,3916.6,3916.0,273.84465196]
[1760139580075,1.2513904,3916.5,3916.0,273.84465196]
[1760139580652,1.2513904,3916.5,3916.0,271.67565196]
[1760139581032,1.2513904,3916.5,3916.0,272.90565196]
[1760139582444,1.2513904,3916.5,3916.0,273.82129451]
[1760139582650,1.2513904,3916.5,3916.0,273.62934801]
[1760139583057,1.2513904,3916.5,3916.0,273.48681797]
[1760139583557,1.2513904,3916.5,3916.0,273.34174185]
[1760139583855,1.2513904,3916.5,3916.0,274.43000226]
[1760139584056,1.2513904,3916.5,3916.0,274.28737661]
[1760139584280,1.2513904,3916.5,3916.0,274.1445194]
[1760139584840,1.2513904,3916.5,3916.0,274.00391857]
[1760139585041,1.2513904,3916.5,3916.0,273.86411892]
[1760139585239,1.2513904,3916.5,3916.0,275.09411892]
[1760139585240,1.25707572,3916.5,3916.0,275.09411892]
[1760139585559,1.25707572,3916.5,3916.1,0.31093075]
[1760139585764,1.25707572,3916.5,3916.1,5.28285468]
[1760139585970,1.25707572,3916.5,3916.1,5.1071]
[1760139586150,1.25707572,3916.5,3916.2,1.44]
[1760139586462,1.25707572,3916.5,3916.2,6.54542615]
[1760139586676,1.25707572,3916.5,3916.3,0.08476759]
[1760139586834,1.25707572,3916.5,3916.3,5.2497]
[1760139587029,1.25707572,3916.5,3916.3,5.10956686]
[1760139587256,1.25707572,3916.5,3916.3,4.97098444]
[1760139587639,0.13499417,3916.6,3916.3,1.54274719]
[1760139587847,0.13499417,3916.6,3916.4,0.4486]
[1760139588060,0.00740108,3919.0,3916.4,0.43642618]
[1760139588271,0.00740108,3919.0,3916.4,9.39292618]
[1760139588491,0.00740108,3919.0,3916.4,8.9565]
[1760139589202,0.00740108,3919.0,3916.5,1.2258]
[1760139589343,0.99999961,3925.0,3916.5,1.2258]
[1760139589344,1.24018096,3931.2,3916.6,8.25697399]
[1760139589685,1.22966557,3928.9,3918.9,0.167]
[1760139589844,0.2351,3929.7,3918.9,9.1945]
[1760139590045,1.22357058,3925.4,3919.0,8.71293375]
[1760139590356,0.2351,3929.7,3919.1,0.46293316]
[1760139590546,0.99999962,3925.8,3919.2,8.25]
[1760139590742,1.26044429,3925.3,3919.3,0.46293199]
[1760139590948,0.99999962,3925.0,3919.3,9.48993199]
[1760139591177,1.26044429,3925.3,3919.4,8.6901]
[1760139591450,0.2351,3927.6,3919.5,0.4401]
[1760139591753,1.28283295,3927.1,3919.6,6.95]
[1760139591949,0.99999962,3925.3,3919.7,0.4401]
[1760139592141,0.99999962,3925.1,3919.8,5.65]
[1760139592345,0.2351,3927.6,3919.9,0.4401]
[1760139592346,1.21779549,3925.2,3919.9,0.4401]
[1760139592545,0.99999962,3925.3,3920.0,5.65]
[1760139592775,1.23598176,3926.1,3920.1,0.6659]
[1760139592977,1.23598176,3926.1,3920.2,6.0901]
[1760139593278,0.99999962,3925.3,3920.3,0.4401]
[1760139593444,0.99999962,3925.3,3920.4,5.65]
[1760139593445,1.21779549,3925.2,3920.4,5.65]
[1760139593650,1.22789948,3924.9,3920.5,0.4401]
[1760139593850,1.22789948,3924.9,3920.6,5.65]
[1760139594049,1.23840878,3925.1,3920.7,0.4401]
[1760139594248,0.99999962,3925.2,3920.8,5.65]
[1760139594449,1.29667161,3925.8,3920.9,0.4401]
[1760139594649,1.29984603,3924.0,3920.9,9.465]
[1760139594844,1.29937475,3923.9,3921.0,6.0901]
[1760139595068,1.25141604,3923.7,3921.1,0.4401]
[1760139595270,1.29667161,3925.8,3921.1,9.4647]
[1760139595475,1.23840878,3925.1,3921.2,6.0901]
[1760139595678,1.28602565,3924.4,3921.3,0.4401]
[1760139595990,0.99999962,3925.2,3921.4,5.65]
[1760139596189,0.99999962,3925.2,3921.5,0.4401]
[1760139596190,1.23840878,3925.1,3921.5,0.4401]
[1760139596362,0.2351,3925.9,3921.5,9.4642]
[1760139596566,1.23840878,3925.1,3921.5,8.1642]
[1760139596787,1.21679408,3925.0,3921.6,5.65]
[1760139596987,0.2351,3927.6,3921.6,5.65]
[1760139596988,0.473,3926.0,3921.6,15.5339]
[1760139597348,0.7081,3925.9,3921.6,15.5339]
[1760139597671,0.99999962,3924.9,3921.6,16.7639]
[1760139597883,0.2351,3925.9,3921.6,16.7639]
[1760139598093,0.99999962,3925.3,3921.6,15.4639]
[1760139598291,0.99999962,3924.4,3921.6,14.1639]
[1760139598463,0.473,3925.2,3921.6,14.1639]
[1760139598464,0.473,3924.3,3921.6,14.1639]
[1760139598653,0.2351,3925.9,3921.6,14.1639]
[1760139598654,0.99999962,3923.6,3921.6,14.1639]
[1760139598982,0.473,3923.5,3921.6,15.3939]
[1760139599153,0.99999962,3923.6,3921.6,15.3939]
[1760139599673,0.99999962,3923.3,3921.6,15.3939]
[1760139599891,0.99999962,3922.8,3921.6,15.3939]
[1760139600054,0.473,3923.2,3921.6,15.3939]
[1760139600386,0.99999962,3923.3,3921.6,15.3939]
[1760139600387,1.72027682,3923.8,3921.6,16.6239]
[1760139600608,0.99999962,3923.9,3921.7,3.4543]
[1760139600809,0.99999962,3923.9,3921.7,13.338]
[1760139600974,0.473,3923.8,3921.7,12.9337]
[1760139601304,1.21466565,3924.8,3921.7,13.338]
[1760139601505,1.24727682,3923.8,3921.7,11.5637]
[1760139601707,2.25272804,3923.6,3921.7,11.5637]
[1760139602007,4.18332154,3924.3,3921.7,11.5637]
[1760139602313,0.001,3927.1,3921.8,0.45]
[1760139602314,2.3516,3923.5,3921.8,0.45]
[1760139602475,1.47420383,3925.9,3925.0,254.29665798]
[1760139602670,0.2351,3925.9,3925.0,263.99565798]
[1760139602913,0.2351,3925.9,3925.1,3.24265279]
[1760139603211,0.99999999,3925.6,3925.0,265.22565798]
[1760139603505,0.99999999,3925.3,3925.1,1.94]
[1760139604103,0.2351,3925.9,3925.1,1.94]
[1760139604306,0.99999999,3925.2,3925.1,1.868341]
[1760139604503,0.99999999,3925.2,3925.0,255.34615798]
[1760139604726,0.2351,3925.9,3925.1,0.18]
[1760139604874,0.99999999,3925.2,3925.0,254.61845798]
[1760139605076,0.2351,3925.9,3925.0,254.61845798]
[1760139605638,0.2351,3925.9,3925.0,254.14765555]
[1760139605937,0.2351,3925.9,3925.0,249.27921855]
[1760139606218,0.2351,3925.9,3925.0,247.63808909]
[1760139606434,0.99999999,3925.1,3925.0,247.63808909]
[1760139606581,0.2351,3925.9,3925.0,247.63808909]
[1760139606780,0.99999999,3925.2,3925.0,247.63808909]
[1760139607010,0.2351,3925.9,3925.0,247.63808909]
[1760139607207,0.99999999,3925.6,3925.0,248.21831855]
[1760139607475,0.2351,3925.9,3925.0,248.21831855]
[1760139607680,0.99999999,3925.1,3925.0,246.91831855]
[1760139607889,0.99999999,3925.1,3925.0,246.91603102]
[1760139608289,0.2351,3925.9,3925.0,246.91603102]
[1760139608290,0.99999999,3925.5,3925.0,246.91603102]
[1760139608488,0.99999999,3925.5,3925.0,248.01224231]
[1760139608489,0.13378871,3925.1,3925.0,248.01224231]
[1760139608689,1.1337887,3925.1,3925.0,248.01224231]
[1760139609015,0.13378871,3925.1,3925.0,248.01224231]
[1760139609223,1.1337887,3925.1,3925.0,247.36246322]
[1760139609589,0.13378871,3925.1,3925.0,247.35946322]
[1760139609791,0.13378871,3925.1,3925.0,246.55511447]
[1760139609994,0.13378871,3925.1,3925.0,247.78511447]
[1760139610186,0.13378871,3925.1,3925.0,246.88067075]
[1760139610512,1.1337887,3925.1,3925.0,246.26577632]
[1760139611295,1.1337887,3925.1,3925.0,247.23812876]
[1760139611626,1.1337887,3925.1,3925.0,246.58812876]
[1760139611820,1.1337887,3925.1,3925.0,246.4623962]
[1760139612027,1.1337887,3925.1,3925.0,246.33737115]
[1760139612211,1.1337887,3925.1,3925.0,245.73242491]
[1760139612414,1.1337887,3925.1,3925.0,245.60639761]
[1760139612591,1.1337887,3925.1,3925.0,236.90177443]
[1760139612787,1.1337887,3925.1,3925.0,238.13177443]
[1760139613024,1.1337887,3925.1,3925.0,238.00447733]
[1760139613225,1.1337887,3925.1,3925.0,237.87973585]
[1760139613730,1.1337887,3925.1,3925.0,237.75562546]
[1760139613896,1.1337887,3925.1,3925.0,237.62725888]
[1760139614231,1.1337887,3925.1,3925.0,237.03719082]
[1760139614410,1.1337887,3925.1,3925.0,236.77348005]
[1760139614932,1.1337887,3925.1,3925.0,236.64428652]
[1760139615230,0.13378871,3925.1,3925.0,236.51329279]
[1760139615417,0.13378871,3925.1,3925.0,236.96311959]
[1760139615728,0.13378871,3925.1,3925.0,236.83454012]
[1760139615729,10.1137887,3925.1,3925.0,236.83454012]
[1760139616294,9.11378871,3925.1,3925.0,236.83454012]
[1760139617031,9.11378871,3925.1,3925.0,238.06454012]
[1760139617032,7.19378871,3925.1,3925.0,238.06454012]
[1760139617395,7.19378871,3925.1,3925.0,237.93072996]
[1760139617601,6.67436061,3925.1,3925.0,237.93072996]
[1760139618020,6.80812984,3925.1,3925.0,237.93072996]
[1760139618432,6.73413849,3925.1,3925.0,239.16072996]
[1760139618599,6.69659209,3925.1,3925.0,239.16072996]
[1760139618805,6.69659209,3925.1,3925.0,237.86072996]
[1760139619434,6.69659209,3925.1,3925.0,237.86272996]
[1760139619648,8.61659209,3925.1,3925.0,237.86272996]
[1760139619839,6.69659209,3925.1,3925.0,239.09272996]
[1760139621044,6.69659209,3925.1,3925.0,238.95901639]
[1760139621370,8.48282286,3925.1,3925.0,240.18901639]
[1760139621657,6.56282286,3925.1,3925.0,240.18901639]
[1760139621811,6.56282286,3925.1,3925.0,240.06244476]
[1760139622210,6.69652949,3925.1,3925.0,238.11244476]
[1760139622550,6.69652949,3925.1,3925.0,237.98349366]
[1760139622860,8.61652949,3925.1,3925.0,239.07930992]
[1760139623035,6.69652949,3925.1,3925.0,239.07930992]
[1760139623340,6.69652949,3925.1,3925.0,244.17480992]
[1760139623341,8.61652949,3925.1,3925.0,244.17480992]
[1760139623539,6.69652949,3925.1,3925.0,244.17480992]
[1760139624126,6.69652949,3925.1,3925.0,245.40480992]
[1760139624329,6.69652949,3925.1,3925.0,244.61814058]
[1760139624533,8.61652949,3925.1,3925.0,244.61814058]
[1760139625404,8.61652949,3925.1,3925.0,245.84814058]
[1760139625626,6.69652949,3925.1,3925.0,245.84814058]
[1760139626177,6.65309079,3925.1,3925.0,245.84814058]
[1760139626940,6.65309079,3925.1,3925.0,247.07814058]
[1760139627140,6.65309079,3925.1,3925.0,246.9503419]
[1760139627550,6.65309079,3925.1,3925.0,246.82296313]
[1760139628426,6.65309079,3925.1,3925.0,245.96930123]
[1760139628637,8.57309079,3925.1,3925.0,245.96930123]
[1760139629662,6.65309079,3925.1,3925.0,245.96930123]
[1760139629836,6.65309079,3925.1,3925.0,247.19930123]
[1760139630463,0.13370663,3925.1,3925.0,247.19930123]
[1760139630669,0.13370663,3925.1,3925.0,245.08804677]
[1760139630867,0.10039392,3925.1,3925.0,245.08804677]
[1760139631081,0.001,3927.1,3925.0,246.76864677]
[1760139631376,0.13358179,3925.4,3925.1,0.4506]
[1760139631535,0.001,3927.1,3925.1,5.546]
[1760139631735,0.13353772,3926.5,3925.1,5.546]
[1760139631959,0.13353772,3926.5,3926.4,0.1938]
[1760139632275,0.001,3927.1,3926.4,5.2875]
[1760139632445,0.03178491,3928.7,3926.5,0.4292]
[1760139632645,0.03178491,3928.7,3926.5,5.5228]
[1760139632852,0.03178491,3928.7,3926.6,0.4292]
[1760139633035,0.03178491,3928.7,3926.6,5.5227]
[1760139633250,0.03178491,3928.7,3926.7,0.4292]
[1760139633450,0.03178491,3928.7,3926.7,5.5225]
[1760139633645,0.03178491,3928.7,3926.8,0.4292]
[1760139633875,0.1272,3926.8,3926.7,5.4525]
[1760139634379,0.03178491,3928.7,3926.7,5.4525]
[1760139635171,0.03178491,3928.7,3926.7,6.6825]
[1760139635679,1.29711128,3928.6,3926.7,6.6825]
[1760139635888,1.29711128,3928.6,3926.8,0.3191]
[1760139636083,1.29711128,3928.6,3926.8,6.2831]
[1760139636248,1.29711128,3928.6,3926.9,0.3191]
[1760139636448,0.03178491,3928.7,3926.9,7.513]
[1760139636649,0.03178491,3928.7,3927.0,0.3191]
[1760139636916,0.03178491,3928.7,3927.0,4.9828]
[1760139637751,0.03278491,3928.7,3927.4,0.99999999]
[1760139637951,0.03278491,3928.7,3927.4,7.94409999]
[1760139638160,0.03278491,3928.7,3927.4,6.9441]
[1760139638360,0.03278491,3928.7,3927.4,7.94409999]
[1760139639369,0.03278491,3928.7,3927.4,8.1741]
[1760139639592,1.29711128,3928.6,3927.4,8.1741]
[1760139639769,0.03278491,3928.7,3927.4,3.95159107]
[1760139639970,0.01478729,3930.0,3927.4,3.95159107]
[1760139640185,0.6786,3929.9,3927.4,2.65159107]
[1760139640492,0.4643,3929.8,3927.4,2.65159107]
[1760139640705,0.4643,3929.8,3927.4,3.88159107]
[1760139640891,0.4643,3929.7,3927.4,3.88159107]
[1760139641078,0.01478729,3930.0,3927.4,3.88159107]
[1760139641284,0.6786,3929.9,3927.4,3.23159107]
[1760139641475,0.4643,3929.8,3927.4,3.23159107]
[1760139641876,0.2143,3929.9,3927.4,1.12033661]
[1760139642203,0.2143,3929.9,3927.4,7.44113661]
[1760139642204,0.4643,3929.8,3927.4,7.44113661]
[1760139642405,0.4643,3929.7,3927.4,7.44113661]
[1760139642611,0.4643,3929.6,3927.4,7.30761882]
[1760139642903,0.4643,3929.5,3927.4,7.30761882]
[1760139643093,0.4643,3929.7,3927.4,7.30761882]
[1760139643297,0.2143,3929.9,3927.4,7.30761882]
[1760139643483,0.01478729,3930.0,3927.4,8.53761882]
[1760139643814,0.01478729,3930.0,3927.5,1.44]
[1760139643981,0.01478729,3930.0,3927.5,6.5323]
[1760139644448,0.01478729,3930.0,3927.5,4.42104554]
[1760139644813,0.01478729,3930.0,3927.5,5.65104554]
[1760139646304,0.01478729,3930.0,3927.5,6.88104554]
[1760139646505,1.24664492,3929.9,3927.5,6.88104554]
[1760139646710,0.01478729,3930.0,3927.5,6.88104554]
[1760139647477,0.01478729,3930.0,3927.5,7.88104553]
[1760139647678,0.01478729,3930.0,3927.5,8.11104554]
[1760139647979,0.01478729,3930.0,3927.5,9.11104553]
[1760139648212,0.01478729,3930.0,3927.5,6.81104554]
[1760139648533,0.13342405,3929.9,3927.5,6.81104554]
[1760139649196,0.13342405,3929.9,3927.5,8.04104554]
[1760139650514,0.13342405,3929.9,3927.6,0.99999999]
[1760139650714,0.05726317,3929.9,3928.7,0.99999999]
[1760139650914,0.01478729,3930.0,3928.7,8.06199999]
[1760139651115,0.01478729,3930.0,3929.9,0.99999999]
[1760139651317,0.01478729,3930.0,3929.9,8.06039999]
[1760139651992,0.01478729,3930.0,3929.9,8.2904]
[1760139653326,0.01478729,3930.0,3929.9,7.2634]
[1760139653528,0.01478729,3930.0,3929.9,8.4934]
[1760139655029,0.01478729,3930.0,3929.9,9.7234]
[1760139655188,0.44548729,3930.0,3929.9,9.7234]
[1760139655389,0.01478729,3930.0,3929.9,9.23801]
[1760139656538,0.01478729,3930.0,3929.9,10.47001]
[1760139656842,0.01578729,3930.0,3929.9,10.47001]
[1760139657904,0.01578729,3930.0,3929.9,11.70001]
[1760139658109,0.44648729,3930.0,3929.9,11.70001]
[1760139658640,0.44648729,3930.0,3929.9,11.59651]
[1760139658946,0.44648729,3930.0,3929.9,11.23166604]
[1760139659104,0.44648729,3930.0,3929.9,12.46166604]
[1760139659413,0.43648729,3930.0,3929.9,12.46166604]
[1760139659616,0.43648729,3930.0,3929.9,12.07526604]
[1760139660116,0.43648729,3930.0,3929.9,11.94176251]
[1760139660530,0.00578729,3930.0,3929.9,13.17176251]
[1760139660733,0.43648729,3930.0,3929.9,13.17176251]
[1760139661614,0.00578729,3930.0,3929.9,13.17176251]
[1760139661812,0.43648729,3930.0,3929.9,14.40176251]
[1760139662328,0.00578729,3930.0,3929.9,14.40176251]
[1760139662520,0.00578729,3930.0,3929.9,13.74978959]
[1760139662841,0.47518729,3930.0,3929.9,13.74978959]
[1760139663244,0.47518729,3930.0,3929.9,14.97978959]
[1760139663447,0.47518729,3930.0,3929.9,14.97508959]
[1760139663646,0.47518729,3930.0,3929.9,14.8416094]
[1760139664767,0.47518729,3930.0,3929.9,16.0716094]
[1760139666226,0.47518729,3930.0,3929.9,17.3016094]
[1760139667668,0.47518729,3930.0,3929.9,18.5316094]
[1760139668920,0.47518729,3930.0,3929.9,19.62805355]
[1760139669479,0.47518729,3930.0,3929.9,12.302]
[1760139669480,1.47518728,3930.0,3929.9,12.302]
[1760139669642,1.47518728,3930.0,3929.9,9.46622392]
[1760139669950,1.47518728,3930.0,3929.9,4.66791949]
[1760139670156,1.47518728,3930.0,3929.9,5.77899543]
[1760139670520,1.47518728,3930.0,3929.9,5.03495082]
[1760139670763,1.47518728,3930.0,3929.9,0.23664522]
[1760139670958,1.47518728,3930.0,3929.9,0.1060412]
[1760139671190,0.99999999,3927.6,3927.5,3.37790619]
[1760139671404,1.46969999,3927.6,3927.5,3.37790619]
[1760139671569,1.46969999,3927.6,3927.5,4.60790619]
[1760139672055,0.4697,3927.6,3927.5,4.60790619]
[1760139672455,1.46969999,3927.6,3927.5,4.60790619]
[1760139672787,1.46969999,3927.6,3927.5,4.48218175]
[1760139672960,1.46969999,3927.6,3927.5,5.58073004]
[1760139673358,0.4697,3927.6,3927.5,5.44567972]
[1760139673566,1.46969999,3927.6,3927.5,5.44567972]
[1760139674077,1.46969999,3927.6,3927.4,3.44681882]
[1760139674078,0.4697,3927.6,3927.4,1.62067036]
[1760139674259,0.4697,3927.5,3927.4,1.55505557]
[1760139674681,0.4697,3927.5,3927.4,1.42137494]
[1760139675790,0.4697,3927.5,3927.4,2.65137494]
[1760139676295,0.4697,3927.5,3927.4,2.65337494]
[1760139676684,0.2328,3927.7,3927.4,2.65337494]
[1760139676870,0.29048839,3927.5,3927.4,2.65337494]
[1760139677071,0.23192532,3927.5,3927.4,3.88337494]
[1760139677285,0.2328,3928.5,3927.4,3.88337494]
[1760139677515,0.00578729,3930.0,3927.4,3.88337494]
[1760139677516,0.2328,3929.3,3927.4,3.88337494]
[1760139678170,0.2328,3929.3,3927.4,8.97457494]
[1760139678370,0.2328,3929.3,3927.4,5.11337494]
[1760139679165,0.2373,3929.2,3927.4,5.11337494]
[1760139679365,0.2373,3929.1,3927.4,10.20467494]
[1760139679664,0.2373,3929.0,3927.4,5.11337494]
[1760139679872,0.2373,3928.9,3927.4,6.34337494]
[1760139680067,0.2349,3928.8,3927.4,6.34097494]
[1760139680272,0.2349,3928.7,3927.4,6.34097494]
[1760139680491,0.2349,3928.6,3927.4,11.43257494]
[1760139680804,0.2349,3928.5,3927.4,6.34097494]
[1760139681008,0.2349,3928.4,3927.4,6.34097494]
[1760139681169,0.2349,3928.3,3927.4,7.57097494]
[1760139681374,0.2349,3928.2,3927.4,7.57097494]
[1760139681584,0.2349,3928.1,3927.4,7.57097494]
[1760139681782,0.2349,3928.0,3927.4,7.57097494]
[1760139682030,0.2349,3927.9,3927.4,7.57097494]
[1760139682196,0.2349,3927.8,3927.4,7.57097494]
[1760139682503,0.2326,3927.7,3927.4,8.56080026]
[1760139682702,0.2326,3927.6,3927.4,8.56080026]
[1760139682906,0.2326,3927.5,3927.4,8.56080026]
[1760139683904,0.2326,3927.5,3927.4,9.79080026]
[1760139684408,0.2326,3927.5,3927.4,9.59992407]
[1760139685380,0.2326,3927.5,3927.4,10.82992407]
[1760139686812,0.2326,3927.5,3927.4,12.05992407]
[1760139688212,0.2326,3927.5,3927.4,13.28992407]
[1760139688591,0.36629459,3927.5,3927.4,13.15622948]
[1760139688979,0.2326,3927.5,3927.4,13.15622948]
[1760139689598,0.2326,3927.5,3927.4,14.38622948]
[1760139689798,0.36628439,3927.5,3927.4,14.38622948]
[1760139691018,0.36628439,3927.5,3927.4,15.61622948]
[1760139691591,7.42628439,3927.5,3927.4,15.4825574]
[1760139691928,7.2926,3927.5,3927.4,15.4825574]
[1760139692432,7.2926,3927.5,3927.4,16.147472]
[1760139692792,7.4262979,3927.5,3927.4,16.01377257]
[1760139693526,7.4262979,3927.5,3927.4,15.99977257]
[1760139693730,7.4262979,3927.5,3927.4,17.22977257]
[1760139693894,7.4262979,3927.5,3927.4,16.22977257]
[1760139694091,7.4262979,3927.5,3927.4,15.22977257]
[1760139694542,7.4262979,3927.5,3927.4,15.04213852]
[1760139694899,7.2926,3927.5,3927.4,15.04213852]
[1760139695209,7.2926,3927.5,3927.4,15.49613852]
[1760139695398,7.2926,3927.5,3927.4,13.33174024]
[1760139695593,7.2926,3927.5,3927.4,10.33244624]
[1760139695802,7.42621922,3927.5,3927.4,9.26804624]
[1760139696003,7.42621922,3927.5,3927.4,8.26804624]
[1760139696305,7.42621922,3927.5,3927.4,8.49804624]
[1760139696503,7.42621922,3927.5,3927.4,7.49804624]
[1760139696803,7.42621922,3927.5,3927.4,6.49804624]
[1760139697123,7.42621922,3927.5,3927.4,5.49804624]
[1760139697442,7.42621922,3927.5,3927.4,2.5613699]
[1760139697736,7.42621922,3927.5,3927.4,3.65776824]
[1760139697737,9.2126,3927.5,3927.4,3.65776824]
[1760139698102,7.2926,3927.5,3927.4,3.65776824]
[1760139698799,7.42616409,3927.5,3927.4,3.65776824]
[1760139699236,7.42616409,3927.5,3927.4,3.58776824]
[1760139699440,9.34616409,3927.5,3927.4,3.58776824]
[1760139699911,7.42616409,3927.5,3927.4,3.58776824]
[1760139700403,7.42616409,3927.5,3927.4,4.81776824]
[1760139700739,0.001,3927.9,3927.4,4.81776824]
[1760139700964,0.001,3927.9,3927.5,0.4538]
[1760139701539,0.001,3927.9,3927.4,4.81776824]
[1760139701764,0.001,3927.9,3927.4,6.04776824]
[1760139701965,0.001,3927.9,3927.4,11.13986824]